fUSD/lending_fUSD_20260529
["ID","MTS","AMOUNT","RATE_DAILY","PERIOD"]
[423326199,1780057864000,-150.0,0.00023823,2]
[423326181,1780057864000,-260.4103811,0.00023154,2]
[423326182,1780057864000,-2586.85809042,0.00023154,2]
[423326175,1780057864000,-924.60877283,0.00023154,2]
[423326185,1780057864000,-152.0,0.00023216,3]
[423326184,1780057864000,-1776.30922209,0.00023154,2]
[423326187,1780057864000,-7357.34,0.00023564,2]
[423326189,1780057864000,-566.33000458,0.00023682,2]
[423326186,1780057864000,-500.0,0.00023288,7]
[423326188,1780057864000,-152.0,0.00023573,4]
[423326197,1780057864000,-1842.0326633,0.00023702,2]
[423326190,1780057864000,-958.81929743,0.00023702,2]
[423326194,1780057864000,-270.0455652,0.00023702,2]
[423326183,1780057864000,-200.0,0.00023154,2]
[423326191,1780057864000,-267.96428932,0.00023702,2]
[423326192,1780057864000,-225.18697532,0.00023702,2]
[423326201,1780057864000,-152.0,0.0002393,5]
[423326206,1780057864000,-1489.0,0.00024,2]
[423326210,1780057864000,-500.0,0.00024,2]
[423326204,1780057864000,-27180.26776259,0.00024,2]
[423326207,1780057864000,-731.0,0.00024,2]
[423326198,1780057864000,-280.0,0.00023823,2]
[423326209,1780057864000,-2360.0,0.00024,2]
[423326193,1780057864000,-170.73266429,0.00023702,2]
[423326196,1780057864000,-200.0,0.00023702,2]
[423326195,1780057864000,-2682.57183977,0.00023702,2]
[423326203,1780057864000,-3600.0,0.00024,2]
[423326273,1780057865000,-5499.83711925,0.00025,2]
[423326275,1780057865000,-392.02,0.00025,2]
[423326274,1780057865000,-140942.0,0.00025,2]
[423326266,1780057865000,-2365.50753147,0.00025,2]
[423326272,1780057865000,-923.26087713,0.00025,2]
[423326271,1780057865000,-826.43033441,0.00025,2]
[423326270,1780057865000,-2856.70686209,0.00025,2]
[423326269,1780057865000,-662.04311938,0.00025,2]
[423326265,1780057865000,-1354.19404032,0.00025,4]
[423326276,1780057865000,-392.02,0.00025,2]
[423326281,1780057865000,-392.02,0.00025,2]
[423326279,1780057865000,-392.02,0.00025,2]
[423326287,1780057865000,-309.0,0.000251,2]
[423326278,1780057865000,-392.02,0.00025,2]
[423326280,1780057865000,-392.02,0.00025,2]
[423326292,1780057865000,-286.92148777,0.00025206,2]
[423326288,1780057865000,-1000.0,0.000251,2]
[423326291,1780057865000,-200.0,0.000251,2]
[423326285,1780057865000,-152.0,0.00025002,8]
[423326283,1780057865000,-392.02,0.00025,2]
[423326282,1780057865000,-392.02,0.00025,2]
[423326290,1780057865000,-315.0,0.000251,2]
[423326286,1780057865000,-996.0,0.00025082,2]
[423326284,1780057865000,-392.02,0.00025,2]
[423326267,1780057865000,-200.0,0.00025,10]
[423326277,1780057865000,-392.02,0.00025,2]
[423326268,1780057865000,-803.36656156,0.00025,2]
[423326289,1780057865000,-300.0,0.000251,10]
[423326259,1780057865000,-56288.56973458,0.00025,7]
[423326237,1780057865000,-959.03,0.00024658,2]
[423326239,1780057865000,-372.127038,0.00024658,2]
[423326240,1780057865000,-372.127038,0.00024658,2]
[423326238,1780057865000,-372.127038,0.00024658,2]
[423326244,1780057865000,-1025.5045555,0.00024684,2]
[423326245,1780057865000,-242.15909246,0.00024798,2]
[423326242,1780057865000,-1000.0,0.00024658,2]
[423326243,1780057865000,-500.0,0.00024658,7]
[423326241,1780057865000,-372.127038,0.00024658,2]
[423326246,1780057865000,-2884.75459676,0.00024798,2]
[423326247,1780057865000,-200.0,0.00024798,2]
[423326248,1780057865000,-1980.8648231,0.00024798,2]
[423326261,1780057865000,-1187.96874582,0.00025,2]
[423326253,1780057865000,-1138.10530309,0.00025,60]
[423326256,1780057865000,-1647.47271075,0.00025,30]
[423326250,1780057865000,-253.06,0.00024959,2]
[423326251,1780057865000,-151.0,0.00024997,7]
[423326249,1780057865000,-796.7,0.00024933,7]
[423326257,1780057865000,-313.60822115,0.00025,2]
[423326252,1780057865000,-838.7,0.00025,2]
[423326255,1780057865000,-400.63324285,0.00025,60]
[423326254,1780057865000,-2630.29506883,0.00025,30]
[423326262,1780057865000,-1491.09335718,0.00025,2]
[423326264,1780057865000,-2820.59695883,0.00025,2]
[423326263,1780057865000,-738.79598337,0.00025,2]
[423326260,1780057865000,-379112.02586341,0.00025,2]
[423326258,1780057865000,-20000.0,0.00025,2]
[423326294,1780057865000,-1272.0,0.00025241,2]
[423326293,1780057865000,-525.0,0.00025241,2]
[423326295,1780057865000,-621.78829552,0.00025344,2]
[423326328,1780057865000,-1325.94,0.00026103,2]
[423326321,1780057865000,-550.0,0.00026,2]
[423326322,1780057865000,-160.0,0.00026,7]
[423326330,1780057865000,-7567.4,0.00026296,2]
[423326340,1780057865000,-152.0,0.00026788,13]
[423326331,1780057865000,-1088.59,0.000264,7]
[423326332,1780057865000,-5531.0,0.000264,5]
[423326329,1780057865000,-996.0,0.00026192,3]
[423326336,1780057865000,-4951.0,0.00026602,5]
[423326333,1780057865000,-152.0,0.00026431,12]
[423326334,1780057865000,-270.0455652,0.00026442,2]
[423326335,1780057865000,-166.51,0.00026482,2]
[423326323,1780057865000,-2000.0,0.00026,7]
[423326339,1780057865000,-996.0,0.00026746,3]
[423326337,1780057865000,-3954.0,0.00026602,5]
[423326346,1780057865000,-778.56013732,0.00027,2]
[423326343,1780057865000,-337.28186717,0.0002699,2]
[423326341,1780057865000,-300.0,0.00026899,10]
[423326350,1780057865000,-2058.59,0.000272,14]
[423326345,1780057865000,-960.36867786,0.00027,5]
[423326347,1780057865000,-1096.525847,0.00027022,14]
[423326344,1780057865000,-2000.0,0.00027,14]
[423326351,1780057865000,-249.17,0.000273,14]
[423326342,1780057865000,-300.0,0.00026899,10]
[423326348,1780057865000,-7357.34,0.00027128,7]
[423326349,1780057865000,-152.0,0.00027145,14]
[423326338,1780057865000,-5664.52,0.00026666,14]
[423326324,1780057865000,-228.06,0.00026027,7]
[423326297,1780057865000,-7357.34,0.00025346,7]
[423326327,1780057865000,-180.0,0.00026092,2]
[423326320,1780057865000,-500.0,0.00026,2]
[423326352,1780057865000,-429.67183006,0.000273,30]
[423326299,1780057865000,-2991.49051684,0.00025346,2]
[423326303,1780057865000,-5275.76938366,0.00025618,2]
[423326301,1780057865000,-2054.15682156,0.00025346,2]
[423326304,1780057865000,-5000.0,0.00025618,2]
[423326298,1780057865000,-251.11897888,0.00025346,2]
[423326296,1780057865000,-775.4783256,0.00025344,2]
[423326305,1780057865000,-5000.0,0.00025618,2]
[423326300,1780057865000,-200.0,0.00025346,2]
[423326307,1780057865000,-5000.0,0.00025618,2]
[423326308,1780057865000,-996.0,0.00025637,2]
[423326310,1780057865000,-5531.0,0.000257,3]
[423326302,1780057865000,-152.0,0.00025359,9]
[423326306,1780057865000,-5000.0,0.00025618,2]
[423326309,1780057865000,-207.31,0.00025644,2]
[423326326,1780057865000,-152.0,0.00026073,11]
[423326318,1780057865000,-260.4103811,0.00025894,2]
[423326325,1780057865000,-500.0,0.00026028,7]
[423326315,1780057865000,-9243.94,0.00025786,2]
[423326319,1780057865000,-833.40594009,0.00026,2]
[423326314,1780057865000,-6120.17,0.00025786,2]
[423326317,1780057865000,-1109.07173699,0.00025879,2]
[423326316,1780057865000,-760.91,0.00025786,2]
[423326312,1780057865000,-1653.84,0.00025786,2]
[423326311,1780057865000,-152.0,0.00025716,10]
[423326313,1780057865000,-7390.55,0.00025786,2]
[423326388,1780057866000,-4431.499608,0.00027397,2]
[423326391,1780057866000,-37722.91,0.00027397,10]
[423326392,1780057866000,-38980.34,0.00027397,10]
[423326398,1780057866000,-6580.74,0.000274,7]
[423326382,1780057866000,-315.49308412,0.00027397,7]
[423326389,1780057866000,-4431.499608,0.00027397,2]
[423326387,1780057866000,-4431.499608,0.00027397,2]
[423326379,1780057866000,-2270.93149805,0.00027397,2]
[423326386,1780057866000,-4431.499608,0.00027397,2]
[423326390,1780057866000,-1000.0,0.00027397,20]
[423326399,1780057866000,-3699.58,0.000274,7]
[423326393,1780057866000,-500.0,0.00027398,7]
[423326402,1780057866000,-1167.87,0.0002744,7]
[423326396,1780057866000,-209.09056759,0.000274,10]
[423326394,1780057866000,-50339.39,0.000274,14]
[423326397,1780057866000,-209.09056759,0.000274,7]
[423326406,1780057866000,-152.0,0.00027502,15]
[423326410,1780057866000,-1123.43408083,0.0002752,5]
[423326408,1780057866000,-1007.09471747,0.0002752,5]
[423326405,1780057866000,-10000.0,0.0002745,2]
[423326409,1780057866000,-1099.54102016,0.0002752,5]
[423326401,1780057866000,-1171.52,0.0002744,7]
[423326400,1780057866000,-1000.0,0.00027414,22]
[423326407,1780057866000,-195.75,0.0002752,14]
[423326384,1780057866000,-959.03,0.00027397,2]
[423326395,1780057866000,-1088.59,0.000274,7]
[423326378,1780057866000,-609.80586532,0.00027397,2]
[423326369,1780057866000,-500.0,0.00027397,2]
[423326377,1780057866000,-427.40509267,0.00027397,2]
[423326403,1780057866000,-1215.13,0.0002744,7]
[423326354,1780057866000,-996.0,0.00027301,4]
[423326355,1780057866000,-300.0,0.00027396,10]
[423326363,1780057866000,-500.0,0.00027397,2]
[423326356,1780057866000,-310.82954872,0.00027396,10]
[423326362,1780057866000,-500.0,0.00027397,2]
[423326359,1780057866000,-500.0,0.00027397,2]
[423326357,1780057866000,-2235.45,0.00027397,2]
[423326358,1780057866000,-500.0,0.00027397,2]
[423326360,1780057866000,-500.0,0.00027397,2]
[423326361,1780057866000,-500.0,0.00027397,2]
[423326364,1780057866000,-500.0,0.00027397,2]
[423326383,1780057866000,-300.0,0.00027397,2]
[423326366,1780057866000,-500.0,0.00027397,2]
[423326375,1780057866000,-441.47620498,0.00027397,2]
[423326370,1780057866000,-500.0,0.00027397,2]
[423326371,1780057866000,-500.0,0.00027397,2]
[423326368,1780057866000,-500.0,0.00027397,2]
[423326367,1780057866000,-500.0,0.00027397,2]
[423326365,1780057866000,-500.0,0.00027397,2]
[423326374,1780057866000,-500.0,0.00027397,2]
[423326373,1780057866000,-500.0,0.00027397,2]
[423326376,1780057866000,-150.0,0.00027397,2]
[423326381,1780057866000,-1500.0,0.00027397,2]
[423326385,1780057866000,-151.0,0.00027397,2]
[423326380,1780057866000,-224.76907207,0.00027397,2]
[423326372,1780057866000,-500.0,0.00027397,2]
[423326353,1780057866000,-429.67183004,0.000273,30]
[423326404,1780057866000,-901.03,0.0002744,7]
[423326411,1780057866000,-1052.85501057,0.0002752,5]
[423326440,1780057866000,-1120.83317821,0.0002752,5]
[423326439,1780057866000,-1101.20826584,0.0002752,5]
[423326447,1780057866000,-1034.22451802,0.0002752,5]
[423326457,1780057866000,-150.0,0.00027521,2]
[423326446,1780057866000,-1066.36997932,0.0002752,5]
[423326448,1780057866000,-1118.32133779,0.0002752,5]
[423326449,1780057866000,-1044.24656796,0.0002752,5]
[423326450,1780057866000,-1018.17972336,0.0002752,5]
[423326451,1780057866000,-1023.96429529,0.0002752,5]
[423326452,1780057866000,-1028.1007146,0.0002752,5]
[423326453,1780057866000,-1114.38467634,0.0002752,5]
[423326455,1780057866000,-1080.55090248,0.0002752,5]
[423326442,1780057866000,-1029.51409048,0.0002752,5]
[423326454,1780057866000,-1073.94259699,0.0002752,5]
[423326461,1780057866000,-5654.7,0.0002755,30]
[423326462,1780057866000,-2256.4,0.0002755,30]
[423326469,1780057866000,-579.1,0.00027611,30]
[423326465,1780057866000,-4254.01,0.0002755,30]
[423326458,1780057866000,-560577.50430198,0.0002755,2]
[423326466,1780057866000,-7136.85,0.0002755,30]
[423326463,1780057866000,-579.3,0.0002755,2]
[423326464,1780057866000,-2707.99,0.0002755,30]
[423326460,1780057866000,-2734.73,0.0002755,30]
[423326468,1780057866000,-579.3,0.0002758,7]
[423326467,1780057866000,-579.1,0.0002758,7]
[423326415,1780057866000,-1047.21814693,0.0002752,5]
[423326459,1780057866000,-579.1,0.0002755,2]
[423326444,1780057866000,-1080.02175736,0.0002752,5]
[423326456,1780057866000,-1778.25472615,0.0002752,5]
[423326445,1780057866000,-1083.01035873,0.0002752,5]
[423326438,1780057866000,-1064.98075917,0.0002752,5]
[423326416,1780057866000,-1042.9964208,0.0002752,5]
[423326414,1780057866000,-1006.78276138,0.0002752,5]
[423326412,1780057866000,-1021.92370937,0.0002752,5]
[423326421,1780057866000,-1012.84394016,0.0002752,5]
[423326422,1780057866000,-1121.52264629,0.0002752,5]
[423326419,1780057866000,-1063.44957921,0.0002752,5]
[423326420,1780057866000,-1124.03815588,0.0002752,5]
[423326418,1780057866000,-1014.17049001,0.0002752,5]
[423326417,1780057866000,-1131.43052532,0.0002752,5]
[423326425,1780057866000,-1107.11258318,0.0002752,5]
[423326424,1780057866000,-1109.21909156,0.0002752,5]
[423326423,1780057866000,-1100.15877893,0.0002752,5]
[423326426,1780057866000,-1002.09652371,0.0002752,5]
[423326413,1780057866000,-1130.8634515,0.0002752,5]
[423326441,1780057866000,-1116.76677582,0.0002752,5]
[423326427,1780057866000,-1024.29770979,0.0002752,5]
[423326443,1780057866000,-1107.99528564,0.0002752,5]
[423326437,1780057866000,-1065.64482382,0.0002752,5]
[423326436,1780057866000,-1002.43513456,0.0002752,5]
[423326435,1780057866000,-1095.79851318,0.0002752,5]
[423326434,1780057866000,-1047.14842009,0.0002752,5]
[423326431,1780057866000,-1086.26241851,0.0002752,5]
[423326433,1780057866000,-1076.13679893,0.0002752,5]
[423326428,1780057866000,-1048.89860764,0.0002752,5]
[423326432,1780057866000,-1052.97690356,0.0002752,5]
[423326429,1780057866000,-1122.18799824,0.0002752,5]
[423326430,1780057866000,-1119.97701666,0.0002752,5]
[423326505,1780057867000,-579.1,0.00027885,30]
[423326511,1780057867000,-3699.58,0.000279,7]
[423326509,1780057867000,-248.908852,0.000279,2]
[423326508,1780057867000,-151.0,0.000279,2]
[423326501,1780057867000,-2256.4,0.00027872,2]
[423326499,1780057867000,-2734.73,0.00027872,2]
[423326502,1780057867000,-2707.99,0.00027872,2]
[423326507,1780057867000,-50339.39,0.000279,14]
[423326498,1780057867000,-405.30787925,0.00027872,2]
[423326500,1780057867000,-5654.7,0.00027872,2]
[423326516,1780057867000,-150.0,0.000279,2]
[423326504,1780057867000,-7136.85,0.00027872,2]
[423326513,1780057867000,-4431.499608,0.000279,7]
[423326515,1780057867000,-4431.499608,0.000279,7]
[423326514,1780057867000,-4431.499608,0.000279,7]
[423326512,1780057867000,-4431.499608,0.000279,7]
[423326519,1780057867000,-579.3,0.00027916,2]
[423326510,1780057867000,-6580.74,0.000279,7]
[423326517,1780057867000,-600.0,0.000279,10]
[423326520,1780057867000,-446.94853584,0.00027945,30]
[423326524,1780057867000,-579.1,0.00027977,30]
[423326529,1780057867000,-150.0,0.00027982,2]
[423326530,1780057867000,-150.0,0.00027982,2]
[423326522,1780057867000,-579.3,0.00027946,7]
[423326521,1780057867000,-579.1,0.00027946,7]
[423326525,1780057867000,-579.3,0.00027977,30]
[423326518,1780057867000,-579.1,0.00027916,2]
[423326497,1780057867000,-796.7,0.00027867,7]
[423326470,1780057867000,-579.3,0.00027611,30]
[423326506,1780057867000,-579.3,0.00027885,30]
[423326474,1780057867000,-536.338243,0.00027671,30]
[423326475,1780057867000,-579.1,0.00027672,7]
[423326472,1780057867000,-579.3,0.00027641,2]
[423326473,1780057867000,-223.32674123,0.00027645,2]
[423326471,1780057867000,-579.1,0.00027641,2]
[423326477,1780057867000,-579.1,0.00027702,30]
[423326480,1780057867000,-5654.7,0.00027711,7]
[423326478,1780057867000,-579.3,0.00027702,30]
[423326476,1780057867000,-579.3,0.00027672,7]
[423326481,1780057867000,-2256.4,0.00027711,7]
[423326479,1780057867000,-2734.73,0.00027711,7]
[423326483,1780057867000,-4254.01,0.00027711,7]
[423326503,1780057867000,-4254.01,0.00027872,2]
[423326482,1780057867000,-2707.99,0.00027711,7]
[423326493,1780057867000,-579.1,0.00027855,7]
[423326485,1780057867000,-579.1,0.00027733,2]
[423326484,1780057867000,-7136.85,0.00027711,7]
[423326494,1780057867000,-579.3,0.00027855,7]
[423326523,1780057867000,-512.88611113,0.00027977,30]
[423326492,1780057867000,-579.3,0.00027824,2]
[423326489,1780057867000,-579.1,0.00027794,30]
[423326490,1780057867000,-579.3,0.00027794,30]
[423326491,1780057867000,-579.1,0.00027824,2]
[423326488,1780057867000,-579.3,0.00027763,7]
[423326496,1780057867000,-152.0,0.00027859,16]
[423326495,1780057867000,-996.0,0.00027856,4]
[423326486,1780057867000,-579.3,0.00027733,2]
[423326526,1780057867000,-150.0,0.00027982,2]
[423326487,1780057867000,-579.1,0.00027763,7]
[423326527,1780057867000,-150.0,0.00027982,2]
[423326559,1780057867000,-301.087025,0.00028,7]
[423326566,1780057867000,-2707.99,0.00028033,30]
[423326551,1780057867000,-160.0,0.00028,30]
[423326552,1780057867000,-1298.758075,0.00028,7]
[423326556,1780057867000,-301.087025,0.00028,7]
[423326567,1780057867000,-4254.01,0.00028033,30]
[423326569,1780057867000,-579.1,0.00028038,7]
[423326570,1780057867000,-579.3,0.00028038,7]
[423326573,1780057867000,-150.30096206,0.00028069,2]
[423326571,1780057867000,-579.1,0.00028068,30]
[423326568,1780057867000,-7136.85,0.00028033,30]
[423326574,1780057867000,-200.0,0.0002808,2]
[423326578,1780057867000,-213.0,0.00028082,2]
[423326572,1780057867000,-579.3,0.00028068,30]
[423326575,1780057867000,-200.0,0.0002808,2]
[423326577,1780057867000,-150.0,0.00028082,2]
[423326576,1780057867000,-310.43374218,0.0002808,2]
[423326579,1780057867000,-302.46,0.00028082,2]
[423326586,1780057867000,-1000.0,0.00028082,3]
[423326581,1780057867000,-1000.0,0.00028082,120]
[423326583,1780057867000,-1000.0,0.00028082,120]
[423326582,1780057867000,-2500.0,0.00028082,120]
[423326580,1780057867000,-356.73298615,0.00028082,2]
[423326587,1780057867000,-3137.0,0.00028082,120]
[423326585,1780057867000,-2500.0,0.00028082,120]
[423326588,1780057867000,-1000.0,0.00028082,3]
[423326528,1780057867000,-150.0,0.00027982,2]
[423326547,1780057867000,-4101.394339,0.00028,7]
[423326553,1780057867000,-1298.758075,0.00028,7]
[423326584,1780057867000,-2500.0,0.00028082,120]
[423326565,1780057867000,-2256.4,0.00028033,30]
[423326533,1780057867000,-200.0,0.00028,20]
[423326532,1780057867000,-2137.02546307,0.00027982,2]
[423326541,1780057867000,-209.09056759,0.00028,30]
[423326539,1780057867000,-160.0,0.00028,2]
[423326536,1780057867000,-576.8097954,0.00028,2]
[423326542,1780057867000,-151.0,0.00028,7]
[423326535,1780057867000,-215.5484138,0.00028,7]
[423326557,1780057867000,-301.087025,0.00028,7]
[423326531,1780057867000,-2991.83564831,0.00027982,2]
[423326540,1780057867000,-643.0,0.00028,2]
[423326534,1780057867000,-215.5484138,0.00028,30]
[423326537,1780057867000,-2393.57376006,0.00028,30]
[423326544,1780057867000,-4101.394339,0.00028,7]
[423326538,1780057867000,-5158.20681217,0.00028,60]
[423326545,1780057867000,-209.09056759,0.00028,10]
[423326560,1780057867000,-2000.0,0.00028,7]
[423326546,1780057867000,-209.09056759,0.00028,7]
[423326554,1780057867000,-1298.758075,0.00028,7]
[423326563,1780057867000,-2734.73,0.00028033,30]
[423326550,1780057867000,-600.0,0.00028,2]
[423326561,1780057867000,-579.1,0.00028007,2]
[423326562,1780057867000,-579.3,0.00028007,2]
[423326558,1780057867000,-301.087025,0.00028,7]
[423326555,1780057867000,-1298.758075,0.00028,7]
[423326549,1780057867000,-4101.394339,0.00028,7]
[423326548,1780057867000,-4101.394339,0.00028,7]
[423326543,1780057867000,-151.0,0.00028,7]
[423326564,1780057867000,-5654.7,0.00028033,30]
[423326625,1780057868000,-357.55882867,0.00028356,30]
[423326629,1780057868000,-6580.74,0.000284,7]
[423326630,1780057868000,-3699.58,0.000284,7]
[423326628,1780057868000,-200.0,0.000284,7]
[423326624,1780057868000,-4254.01,0.00028355,2]
[423326616,1780057868000,-1178.68,0.00028263,7]
[423326620,1780057868000,-2734.73,0.00028355,2]
[423326615,1780057868000,-1132.84,0.00028263,7]
[423326621,1780057868000,-5654.7,0.00028355,2]
[423326617,1780057868000,-874.0,0.00028263,7]
[423326623,1780057868000,-2707.99,0.00028355,2]
[423326631,1780057868000,-996.0,0.00028411,5]
[423326643,1780057868000,-263.24746955,0.00028489,7]
[423326632,1780057868000,-150.0,0.00028417,2]
[423326634,1780057868000,-166.19200635,0.00028484,7]
[423326633,1780057868000,-182.0,0.0002842,120]
[423326639,1780057868000,-190.71881334,0.00028489,7]
[423326627,1780057868000,-50339.39,0.000284,14]
[423326635,1780057868000,-188.91940081,0.00028484,7]
[423326636,1780057868000,-183.72463087,0.00028484,7]
[423326637,1780057868000,-169.57914868,0.00028484,7]
[423326641,1780057868000,-339.44563588,0.00028489,7]
[423326642,1780057868000,-194.94217431,0.00028489,7]
[423326640,1780057868000,-165.38773487,0.00028489,7]
[423326619,1780057868000,-444.2510982,0.00028297,120]
[423326638,1780057868000,-168.67184957,0.00028489,2]
[423326626,1780057868000,-500.0,0.00028388,120]
[423326600,1780057868000,-5654.7,0.00028194,7]
[423326622,1780057868000,-2256.4,0.00028355,2]
[423326645,1780057868000,-152.74726053,0.00028489,7]
[423326589,1780057868000,-1000.0,0.00028082,3]
[423326590,1780057868000,-1000.0,0.00028082,3]
[423326591,1780057868000,-644.79446245,0.00028083,2]
[423326603,1780057868000,-2707.99,0.00028194,7]
[423326592,1780057868000,-804.17102365,0.00028083,2]
[423326597,1780057868000,-579.42,0.0002813,7]
[423326602,1780057868000,-151.0,0.00028194,7]
[423326594,1780057868000,-579.3,0.00028099,2]
[423326596,1780057868000,-579.23,0.0002813,7]
[423326599,1780057868000,-2734.73,0.00028194,7]
[423326595,1780057868000,-1075.0,0.000281,7]
[423326618,1780057868000,-7567.4,0.00028267,2]
[423326593,1780057868000,-579.1,0.00028099,2]
[423326601,1780057868000,-2256.4,0.00028194,7]
[423326609,1780057868000,-151.0,0.00028241,7]
[423326607,1780057868000,-152.0,0.00028216,17]
[423326605,1780057868000,-7136.85,0.00028194,7]
[423326611,1780057868000,-151.0,0.00028241,7]
[423326606,1780057868000,-200.0,0.000282,20]
[423326608,1780057868000,-151.0,0.00028241,7]
[423326610,1780057868000,-151.0,0.00028241,7]
[423326604,1780057868000,-4254.01,0.00028194,7]
[423326612,1780057868000,-1272.0,0.00028241,2]
[423326613,1780057868000,-525.0,0.00028241,2]
[423326614,1780057868000,-1136.38,0.00028263,7]
[423326598,1780057868000,-286.92148777,0.00028141,2]
[423326648,1780057868000,-190.33090994,0.00028489,7]
[423326652,1780057868000,-328.35556207,0.00028489,7]
[423326644,1780057868000,-187.75190103,0.00028489,7]
[423326679,1780057868000,-162.03706712,0.0002856,7]
[423326678,1780057868000,-205.56743579,0.0002856,7]
[423326680,1780057868000,-159.08763722,0.0002856,7]
[423326683,1780057868000,-207.45988435,0.0002856,7]
[423326681,1780057868000,-217.44533831,0.0002856,7]
[423326682,1780057868000,-156.73145998,0.0002856,7]
[423326684,1780057868000,-158.76099832,0.0002856,7]
[423326686,1780057868000,-164.0,0.0002856,120]
[423326687,1780057868000,-169.410686,0.0002856,7]
[423326689,1780057868000,-152.0,0.00028574,18]
[423326688,1780057868000,-168.50294931,0.0002856,7]
[423326685,1780057868000,-392.16803919,0.0002856,7]
[423326677,1780057868000,-177.01374539,0.0002856,7]
[423326694,1780057868000,-2256.4,0.00028677,7]
[423326691,1780057868000,-1338.33626677,0.00028646,15]
[423326693,1780057868000,-5654.7,0.00028677,7]
[423326690,1780057868000,-253.2423139,0.000286,7]
[423326696,1780057868000,-500.0,0.00028767,120]
[423326701,1780057868000,-500.0,0.00028767,120]
[423326702,1780057868000,-500.0,0.00028767,120]
[423326698,1780057868000,-500.0,0.00028767,120]
[423326647,1780057868000,-197.14485582,0.00028489,7]
[423326697,1780057868000,-500.0,0.00028767,120]
[423326699,1780057868000,-500.0,0.00028767,120]
[423326695,1780057868000,-1088.59,0.000287,7]
[423326703,1780057868000,-500.0,0.00028767,120]
[423326692,1780057868000,-166.51,0.00028668,2]
[423326675,1780057868000,-154.52712352,0.00028531,7]
[423326700,1780057868000,-500.0,0.00028767,120]
[423326673,1780057868000,-152.28468194,0.00028531,7]
[423326676,1780057868000,-205.81059355,0.0002856,7]
[423326646,1780057868000,-170.4118041,0.00028489,7]
[423326650,1780057868000,-153.44131016,0.00028489,7]
[423326651,1780057868000,-153.02264896,0.00028489,7]
[423326649,1780057868000,-158.81553262,0.00028489,7]
[423326655,1780057868000,-192.52922732,0.00028489,7]
[423326653,1780057868000,-179.45840051,0.00028489,7]
[423326658,1780057868000,-164.33354146,0.00028489,7]
[423326654,1780057868000,-158.62281654,0.00028489,7]
[423326656,1780057868000,-205.89387837,0.00028489,7]
[423326659,1780057868000,-172.18046261,0.00028489,7]
[423326657,1780057868000,-181.11366582,0.00028489,7]
[423326660,1780057868000,-342.36099492,0.00028489,7]
[423326671,1780057868000,-2707.99,0.00028516,30]
[423326667,1780057868000,-2620.24,0.00028516,30]
[423326665,1780057868000,-190.63823032,0.00028489,7]
[423326663,1780057868000,-208.83692504,0.00028489,7]
[423326661,1780057868000,-202.25494561,0.00028489,7]
[423326670,1780057868000,-2256.4,0.00028516,30]
[423326669,1780057868000,-5654.7,0.00028516,30]
[423326662,1780057868000,-150.49798279,0.00028489,7]
[423326668,1780057868000,-2734.73,0.00028516,30]
[423326666,1780057868000,-206.79353255,0.00028489,5]
[423326664,1780057868000,-165.28783929,0.00028489,7]
[423326672,1780057868000,-165.02368299,0.00028531,7]
[423326674,1780057868000,-195.33746677,0.00028531,7]
[423326729,1780057869000,-1000.0,0.00029,2]
[423326734,1780057869000,-2382.26336414,0.00029,2]
[423326738,1780057869000,-1013.15,0.00029,2]
[423326739,1780057869000,-2500.0,0.00029,2]
[423326733,1780057869000,-763.1,0.00029,2]
[423326735,1780057869000,-11591.88,0.00029,2]